fUST/lending_fUST_20260603
["ID","MTS","AMOUNT","RATE_DAILY","PERIOD"]
[423849514,1780449039000,-500.0,0.00013698,2]
[423849549,1780449039000,-336.49,0.00013698,2]
[423849547,1780449039000,-500.0,0.00013698,2]
[423849545,1780449039000,-500.0,0.00013698,2]
[423849534,1780449039000,-500.0,0.00013698,2]
[423849544,1780449039000,-500.0,0.00013698,2]
[423849528,1780449039000,-500.0,0.00013698,2]
[423849524,1780449039000,-453.51650203,0.00013698,2]
[423849512,1780449039000,-500.0,0.00013698,2]
[423849520,1780449039000,-500.0,0.00013698,2]
[423849516,1780449039000,-500.0,0.00013698,2]
[423849530,1780449039000,-534.06988833,0.00013698,2]
[423849698,1780449040000,-583.63,0.00013698,2]
[423849708,1780449040000,-249.18958142,0.00013944,2]
[423849702,1780449040000,-228.42967244,0.00013699,3]
[423849700,1780449040000,-1000.0,0.00013699,2]
[423849696,1780449040000,-500.0,0.00013698,2]
[423849671,1780449040000,-500.0,0.00013698,2]
[423849680,1780449040000,-619.52,0.00013698,2]
[423849686,1780449040000,-500.0,0.00013698,2]
[423849675,1780449040000,-500.0,0.00013698,2]
[423849678,1780449040000,-500.0,0.00013698,2]
[423849676,1780449040000,-500.0,0.00013698,2]
[423849688,1780449040000,-500.0,0.00013698,2]
[423849710,1780449040000,-448.54124655,0.00013944,2]
[423849736,1780449040000,-203.52,0.00013972,2]
[423849706,1780449040000,-248.66599621,0.00013772,2]
[423849704,1780449040000,-641.50044041,0.00013699,2]
[423849726,1780449040000,-500.0,0.00013972,2]
[423849734,1780449040000,-500.0,0.00013972,2]
[423849732,1780449040000,-500.0,0.00013972,2]
[423849730,1780449040000,-500.0,0.00013972,2]
[423849728,1780449040000,-500.0,0.00013972,2]
[423849718,1780449040000,-796.60925388,0.00013944,2]
[423849724,1780449040000,-500.0,0.00013972,2]
[423849720,1780449040000,-500.0,0.00013972,2]
[423849722,1780449040000,-374.63,0.00013972,2]
[423849692,1780449040000,-500.0,0.00013698,2]
[423849737,1780449040000,-500.0,0.00013972,2]
[423849694,1780449040000,-500.0,0.00013698,2]
[423849684,1780449040000,-500.0,0.00013698,2]
[423849646,1780449040000,-500.0,0.00013698,2]
[423849673,1780449040000,-500.61446561,0.00013698,2]
[423849742,1780449040000,-213.25,0.00013972,2]
[423849615,1780449040000,-204.11397081,0.00013698,2]
[423849617,1780449040000,-500.0,0.00013698,2]
[423849619,1780449040000,-500.0,0.00013698,2]
[423849622,1780449040000,-500.0,0.00013698,2]
[423849632,1780449040000,-500.0,0.00013698,2]
[423849624,1780449040000,-500.0,0.00013698,2]
[423849613,1780449040000,-500.0,0.00013698,2]
[423849626,1780449040000,-500.0,0.00013698,2]
[423849630,1780449040000,-500.0,0.00013698,2]
[423849634,1780449040000,-500.0,0.00013698,2]
[423849636,1780449040000,-500.0,0.00013698,2]
[423849639,1780449040000,-500.0,0.00013698,2]
[423849641,1780449040000,-500.0,0.00013698,2]
[423849644,1780449040000,-500.17397271,0.00013698,2]
[423849648,1780449040000,-500.0,0.00013698,2]
[423849650,1780449040000,-500.14661618,0.00013698,2]
[423849652,1780449040000,-500.0,0.00013698,2]
[423849654,1780449040000,-500.4372812,0.00013698,2]
[423849658,1780449040000,-500.0,0.00013698,2]
[423849656,1780449040000,-500.0,0.00013698,2]
[423849660,1780449040000,-500.0,0.00013698,2]
[423849662,1780449040000,-4441.773133,0.00013698,2]
[423849664,1780449040000,-500.13859997,0.00013698,2]
[423849666,1780449040000,-507.33168212,0.00013698,2]
[423849669,1780449040000,-346.75,0.00013698,2]
[423849682,1780449040000,-500.0,0.00013698,2]
[423849690,1780449040000,-500.0,0.00013698,2]
[423849740,1780449040000,-500.0,0.00013972,2]
[423849628,1780449040000,-500.0,0.00013698,2]
[423849749,1780449040000,-500.0,0.00013972,2]
[423849790,1780449040000,-500.0,0.00013972,2]
[423849809,1780449040000,-500.0,0.00013972,2]
[423849814,1780449040000,-500.0,0.00014246,2]
[423849813,1780449040000,-580.04872,0.00014246,2]
[423849820,1780449040000,-500.0,0.0001452,2]
[423849818,1780449040000,-153.28,0.00014303,2]
[423849815,1780449040000,-500.0,0.00014246,2]
[423849811,1780449040000,-1303.137596,0.000142,2]
[423849819,1780449040000,-666.22054881,0.00014496,2]
[423849817,1780449040000,-500.0,0.00014246,2]
[423849816,1780449040000,-500.0,0.00014246,2]
[423849821,1780449040000,-342.79,0.0001452,2]
[423849823,1780449040000,-864.0,0.00014545,2]
[423849824,1780449040000,-323.784399,0.000147,2]
[423849826,1780449040000,-500.0,0.00014794,2]
[423849836,1780449040000,-3000.0,0.0001601,2]
[423849825,1780449040000,-500.0,0.00014794,2]
[423849827,1780449040000,-152.0,0.00014889,7]
[423849828,1780449040000,-261.51540893,0.000149,2]
[423849829,1780449040000,-481.78191579,0.00015068,2]
[423849832,1780449040000,-500.0,0.00015616,2]
[423849833,1780449040000,-500.0,0.0001589,2]
[423849831,1780449040000,-500.0,0.00015342,2]
[423849835,1780449040000,-3000.0,0.00016,2]
[423849830,1780449040000,-500.0,0.00015068,2]
[423849834,1780449040000,-1000.0,0.00016,2]
[423849739,1780449040000,-500.0,0.00013972,2]
[423849793,1780449040000,-500.0,0.00013972,2]
[423849805,1780449040000,-500.0,0.00013972,2]
[423849822,1780449040000,-500.0,0.0001452,2]
[423849792,1780449040000,-500.0,0.00013972,2]
[423849747,1780449040000,-500.0,0.00013972,2]
[423849787,1780449040000,-649.9,0.00013972,2]
[423849746,1780449040000,-500.0,0.00013972,2]
[423849744,1780449040000,-500.0,0.00013972,2]
[423849755,1780449040000,-500.0,0.00013972,2]
[423849751,1780449040000,-500.0,0.00013972,2]
[423849754,1780449040000,-297.64,0.00013972,2]
[423849759,1780449040000,-500.0,0.00013972,2]
[423849761,1780449040000,-500.0,0.00013972,2]
[423849765,1780449040000,-500.0,0.00013972,2]
[423849763,1780449040000,-358.34391089,0.00013972,2]
[423849767,1780449040000,-500.0,0.00013972,2]
[423849778,1780449040000,-500.0,0.00013972,2]
[423849769,1780449040000,-500.0,0.00013972,2]
[423849757,1780449040000,-500.0,0.00013972,2]
[423849772,1780449040000,-500.0,0.00013972,2]
[423849771,1780449040000,-500.0,0.00013972,2]
[423849786,1780449040000,-500.0,0.00013972,2]
[423849808,1780449040000,-532.8896707,0.00013972,2]
[423849800,1780449040000,-500.0,0.00013972,2]
[423849804,1780449040000,-500.0,0.00013972,2]
[423849784,1780449040000,-500.0,0.00013972,2]
[423849801,1780449040000,-200.18397054,0.00013972,2]
[423849795,1780449040000,-500.0,0.00013972,2]
[423849780,1780449040000,-500.0,0.00013972,2]
[423849776,1780449040000,-500.0,0.00013972,2]
[423849782,1780449040000,-500.0,0.00013972,2]
[423849774,1780449040000,-500.0,0.00013972,2]
[423849798,1780449040000,-500.0,0.00013972,2]
[423849862,1780449041000,-500.0,0.00016164,2]
[423849864,1780449041000,-3000.0,0.0001617,2]
[423849876,1780449041000,-3000.0,0.0001621,2]
[423849874,1780449041000,-3000.0,0.000162,2]
[423849878,1780449041000,-3000.0,0.0001622,2]
[423849882,1780449041000,-5640.560685,0.0001624,2]
[423849868,1780449041000,-500.0,0.00016179,2]
[423849866,1780449041000,-610.83,0.00016179,2]
[423849880,1780449041000,-3000.0,0.0001623,2]
[423849872,1780449041000,-3000.0,0.0001619,2]
[423849884,1780449041000,-160.0,0.00016313,2]
[423849870,1780449041000,-3000.0,0.0001618,2]
[423849860,1780449041000,-3000.0,0.0001616,2]
[423849842,1780449041000,-3000.0,0.0001606,2]
[423849853,1780449041000,-3000.0,0.0001612,2]
[423849856,1780449041000,-3000.0,0.0001614,2]
[423849851,1780449041000,-3000.0,0.0001611,2]
[423849858,1780449041000,-3000.0,0.0001615,2]
[423849849,1780449041000,-3000.0,0.000161,2]
[423849843,1780449041000,-3000.0,0.0001607,2]
[423849845,1780449041000,-3000.0,0.0001608,2]
[423849847,1780449041000,-3000.0,0.0001609,2]
[423849839,1780449041000,-3000.0,0.0001604,2]
[423849838,1780449041000,-3000.0,0.0001603,2]
[423849837,1780449041000,-3000.0,0.0001602,2]
[423849886,1780449041000,-2270.92318439,0.00016353,2]
[423849855,1780449041000,-3000.0,0.0001613,2]
[423849889,1780449041000,-178.0,0.00016438,3]
[423849840,1780449041000,-3000.0,0.0001605,2]
[423849892,1780449041000,-244.0,0.000176,2]
[423849894,1780449041000,-677.293,0.00018021,2]
[423849929,1780449041000,-501386.01454032,0.0002,2]
[423849926,1780449041000,-628.25125518,0.000196,2]
[423849928,1780449041000,-8819.93452078,0.000199,2]
[423849927,1780449041000,-253.94,0.00019726,2]
[423849925,1780449041000,-300.0,0.00019589,3]
[423849924,1780449041000,-253.94,0.00019452,2]
[423849921,1780449041000,-406687.97642499,0.00019289,2]
[423849910,1780449041000,-316.51546596,0.00018303,2]
[423849923,1780449041000,-492.0,0.00019359,2]
[423849920,1780449041000,-181.0,0.00019178,3]
[423849919,1780449041000,-253.94,0.00019178,2]
[423849918,1780449041000,-300.0,0.00019178,2]
[423849922,1780449041000,-1000.0,0.00019359,2]
[423849916,1780449041000,-558.0,0.00019,2]
[423849888,1780449041000,-539.93444838,0.00016438,2]
[423849917,1780449041000,-2270.92318439,0.00019111,2]
[423849896,1780449041000,-1415.0,0.00018107,2]
[423849906,1780449041000,-185.341,0.00018107,2]
[423849898,1780449041000,-2206.0,0.00018107,2]
[423849908,1780449041000,-214.11974939,0.00018303,2]
[423849890,1780449041000,-1000.0,0.000176,2]
[423849900,1780449041000,-3630.0,0.00018107,2]
[423849914,1780449041000,-253.94,0.00018904,2]
[423849904,1780449041000,-743.0,0.00018107,2]
[423849912,1780449041000,-253.94,0.0001863,2]
[423849915,1780449041000,-10352.54245822,0.00019,2]
[423849902,1780449041000,-444.0,0.00018107,2]
[423850857,1780449102000,10000.0,0.00023288,120]
[423850858,1780449117000,10000.0,0.00023288,120]
[423850860,1780449132000,10000.0,0.00023288,120]
[423850861,1780449142000,10000.0,0.00023288,120]
[423850862,1780449149000,151.0,0.0002,120]
[423850863,1780449150000,151.0,0.000217,120]
[423850891,1780450092000,2072.01,0.00023714,120]
[423850901,1780450232000,-3465.85544935,0.00013158,2]
[423850900,1780450232000,-638.97345877,0.00013158,2]
[423850911,1780450241000,-160.0,0.00016374,2]
[423850910,1780450241000,-229.0,0.00014192,3]
[423850908,1780450241000,-895.17109188,0.00013158,2]
[423850909,1780450241000,-500.0,0.00013698,2]
[423850913,1780450241000,-151.0,0.00016441,2]
[423850914,1780450241000,-214.64102172,0.00016771,2]
[423850912,1780450241000,-151.0,0.00016441,2]
[423851023,1780450244000,-300.0,0.00017105,2]
[423851017,1780450244000,-183.7242899,0.00016771,2]
[423851013,1780450244000,-1585.0179575,0.00016771,2]
[423851015,1780450244000,-2299.495566,0.00016771,2]
[423851011,1780450244000,-4059.79280188,0.00016771,2]
[423851019,1780450244000,-300.0,0.00017105,2]
[423851021,1780450244000,-300.0,0.00017105,2]
[423851025,1780450244000,-300.0,0.00017105,2]
[423851029,1780450244000,-300.0,0.00017105,2]
[423851031,1780450244000,-300.0,0.00017105,2]
[423851027,1780450244000,-300.0,0.00017105,2]
[423851039,1780450244000,-300.0,0.00017105,2]
[423851033,1780450244000,-300.0,0.00017105,2]
[423851037,1780450244000,-300.0,0.00017105,2]
[423851042,1780450244000,-300.0,0.00017105,2]
[423851041,1780450244000,-300.0,0.00017105,2]
[423851044,1780450244000,-300.0,0.00017105,2]
[423851046,1780450244000,-300.0,0.00017105,2]
[423851050,1780450244000,-1000.0,0.00017786,2]
[423851052,1780450244000,-990.08724522,0.00018281,2]
[423851048,1780450244000,-600.0,0.00017446,2]
[423851035,1780450244000,-300.0,0.00017105,2]
[423851336,1780450247000,-3630.0,0.00018381,2]
[423851344,1780450247000,-172.8,0.0001863,2]
[423851338,1780450247000,-444.0,0.00018381,2]
[423851340,1780450247000,-186.475,0.00018381,2]
[423851325,1780450247000,-635.61031852,0.00018281,2]
[423851346,1780450247000,-172.8,0.00018904,2]
[423851332,1780450247000,-518.21653069,0.0001838,2]
[423851327,1780450247000,-528.8687514,0.0001838,2]
[423851334,1780450247000,-2206.0,0.00018381,2]
[423851331,1780450247000,-500.0,0.0001838,2]
[423851329,1780450247000,-500.0,0.0001838,2]
[423851342,1780450247000,-185.341,0.00018381,2]
[423851367,1780450247000,-135.05206764,0.00019793,2]
[423851357,1780450247000,-541.835,0.000196,2]
[423851351,1780450247000,-720.0,0.00019191,2]
[423851371,1780450247000,-3508.69525168,0.00019793,2]
[423851365,1780450247000,-2989.33354914,0.00019793,2]
[423851363,1780450247000,-869.9403823,0.00019793,2]
[423851361,1780450247000,-172.8,0.00019726,2]
[423851369,1780450247000,-174.38114306,0.00019793,2]
[423851355,1780450247000,-418.83417012,0.000196,2]
[423851353,1780450247000,-172.8,0.00019452,2]
[423851348,1780450247000,-160.0,0.00019123,3]
[423851350,1780450247000,-172.8,0.00019178,2]
[423851359,1780450247000,-1737.02146837,0.00019695,2]
[423852525,1780450552000,155.0,0.0002,120]
[423852526,1780450554000,155.0,0.000218,120]
[423852527,1780450599000,166.65472566,0.00023714,120]
[423852554,1780451431000,-3142.00522956,0.0001609,2]
[423852715,1780451438000,-1148.52844688,0.0001609,2]
[423852833,1780451443000,-1000.0,0.00018034,2]
[423852837,1780451443000,-450.51830982,0.00018306,2]
[423852829,1780451443000,-709.46632356,0.0001609,2]
[423852830,1780451443000,-162.67204715,0.00016431,2]
[423852831,1780451443000,-166.66666666,0.00016609,2]
[423852834,1780451443000,-160.0,0.00018085,2]
[423852836,1780451443000,-2378.8030457,0.00018106,2]
[423852832,1780451443000,-163.4916617,0.00017922,2]
[423852838,1780451443000,-1415.0,0.00018392,2]
[423852839,1780451443000,-3631.0,0.00018392,2]
[423852835,1780451443000,-2103.3671692,0.00018106,2]
[423852882,1780451444000,-3785.59423961,0.00019895,2]
[423852888,1780451444000,-3785.59423961,0.00019895,2]
[423852877,1780451444000,-216.60324749,0.00019895,2]
[423852879,1780451444000,-3785.59423961,0.00019895,2]
[423852878,1780451444000,-3785.59423961,0.00019895,2]
[423852880,1780451444000,-3785.59423961,0.00019895,2]
[423852871,1780451444000,-500.0,0.00019795,2]
[423852876,1780451444000,-775.10581099,0.00019848,2]
[423852873,1780451444000,-775.10581099,0.00019796,2]
[423852863,1780451444000,-151.0,0.00019793,2]
[423852867,1780451444000,-420.32868328,0.00019795,2]
[423852881,1780451444000,-3785.59423961,0.00019895,2]
[423852886,1780451444000,-3785.59423961,0.00019895,2]
[423852892,1780451444000,-3785.59423961,0.00019895,2]
[423852884,1780451444000,-3785.59423961,0.00019895,2]
[423852885,1780451444000,-3785.59423961,0.00019895,2]
[423852894,1780451444000,-3785.59423961,0.00019895,2]
[423852883,1780451444000,-3785.59423961,0.00019895,2]
[423852891,1780451444000,-3785.59423961,0.00019895,2]
[423852897,1780451444000,-433.997,0.00019896,2]
[423852898,1780451444000,-300.0,0.00019897,3]
[423852902,1780451444000,-559154.85277382,0.0002,2]
[423852890,1780451444000,-3785.59423961,0.00019895,2]
[423852901,1780451444000,-452143.93198265,0.0002,2]
[423852899,1780451444000,-775.10581099,0.000199,2]
[423852900,1780451444000,-7940.39463301,0.00019914,2]
[423852874,1780451444000,-2401.43970076,0.00019797,2]
[423852887,1780451444000,-3785.59423961,0.00019895,2]
[423852868,1780451444000,-500.0,0.00019795,2]
[423852889,1780451444000,-3785.59423961,0.00019895,2]
[423852866,1780451444000,-500.0,0.00019795,2]
[423852893,1780451444000,-3785.59423961,0.00019895,2]
[423852840,1780451444000,-311.93676481,0.00018757,2]
[423852841,1780451444000,-300.0,0.00018758,2]
[423852842,1780451444000,-300.0,0.00018758,2]
[423852843,1780451444000,-300.0,0.00018758,2]
[423852845,1780451444000,-300.0,0.00018758,2]
[423852850,1780451444000,-300.0,0.00018758,2]
[423852847,1780451444000,-300.0,0.00018758,2]
[423852844,1780451444000,-300.0,0.00018758,2]
[423852849,1780451444000,-300.0,0.00018758,2]
[423852846,1780451444000,-300.0,0.00018758,2]
[423852848,1780451444000,-300.0,0.00018758,2]
[423852851,1780451444000,-300.0,0.00018758,2]
[423852855,1780451444000,-300.0,0.00018758,2]
[423852853,1780451444000,-300.0,0.00018758,2]
[423852856,1780451444000,-1507.92,0.000188,2]
[423852854,1780451444000,-300.0,0.00018758,2]
[423852857,1780451444000,-2000.0,0.000191,3]
[423852852,1780451444000,-300.0,0.00018758,2]
[423852862,1780451444000,-292.0,0.00019793,2]
[423852861,1780451444000,-151.0,0.00019793,2]
[423852860,1780451444000,-151.0,0.00019793,2]
[423852858,1780451444000,-280.92699132,0.000196,2]
[423852859,1780451444000,-151.0,0.00019793,2]
[423852864,1780451444000,-151.0,0.00019793,2]
[423852872,1780451444000,-1423.34036185,0.00019796,2]
[423852869,1780451444000,-500.0,0.00019795,2]
[423852875,1780451444000,-1000.0,0.000198,5]
[423852870,1780451444000,-500.0,0.00019795,2]
[423852865,1780451444000,-151.0,0.00019793,2]
[423852896,1780451444000,-3785.59423961,0.00019895,2]
[423852905,1780451444000,-282.068169,0.0002,2]
[423852895,1780451444000,-3785.59423961,0.00019895,2]
[423852937,1780451444000,-172.8,0.00020274,2]
[423852938,1780451444000,-151.1,0.000205,2]
[423852934,1780451444000,-1003.84,0.00020166,2]
[423852939,1780451444000,-300.06,0.0002051,2]
[423852940,1780451444000,-172.8,0.00020548,2]
[423852942,1780451444000,-151.06,0.000207,2]
[423852952,1780451444000,-151.41,0.00021,2]
[423852953,1780451444000,-300.0,0.00021,2]
[423852944,1780451444000,-1216.4301,0.000208,2]
[423852943,1780451444000,-681.5388,0.000208,2]
[423852941,1780451444000,-1404.85060864,0.0002061,2]
[423852945,1780451444000,-1214.61,0.000208,2]
[423852948,1780451444000,-795.0,0.000208,2]
[423852936,1780451444000,-151.41,0.000202,2]
[423852951,1780451444000,-259.38158744,0.000209,2]
[423852949,1780451444000,-172.8,0.00020822,2]
[423852950,1780451444000,-151.63797828,0.00020825,2]
[423852955,1780451444000,-46053.14485406,0.00021,2]
[423852963,1780451444000,-151.0,0.00021,2]
[423852957,1780451444000,-47465.9505251,0.00021,2]
[423852954,1780451444000,-280.56636172,0.00021,2]
[423852956,1780451444000,-50000.0,0.00021,2]
[423852964,1780451444000,-151.0,0.00021,2]
[423852958,1780451444000,-2697.59,0.00021,5]
[423852962,1780451444000,-282.068162,0.00021,2]
[423852961,1780451444000,-282.068169,0.00021,2]
[423852959,1780451444000,-282.068169,0.00021,2]
[423852960,1780451444000,-282.068169,0.00021,2]
[423852947,1780451444000,-1470.28,0.000208,2]
[423852931,1780451444000,-282.068169,0.00020014,2]
[423852946,1780451444000,-1470.28,0.000208,2]
[423852935,1780451444000,-600.0,0.00020188,2]
[423852930,1780451444000,-282.068169,0.00020014,2]
[423852903,1780451444000,-139731.20205733,0.0002,2]
[423852906,1780451444000,-282.068169,0.0002,2]
[423852907,1780451444000,-282.068169,0.0002,2]
[423852913,1780451444000,-282.068169,0.0002,2]
[423852909,1780451444000,-282.068169,0.0002,2]
[423852908,1780451444000,-282.068169,0.0002,2]
[423852912,1780451444000,-282.068169,0.0002,2]
[423852914,1780451444000,-282.068169,0.0002,2]
[423852911,1780451444000,-282.068169,0.0002,2]
[423852910,1780451444000,-282.068169,0.0002,2]
[423852916,1780451444000,-282.068169,0.0002,2]
[423852926,1780451444000,-531.0,0.0002,2]
[423852925,1780451444000,-255.252358,0.0002,2]
[423852904,1780451444000,-172.8,0.0002,2]
[423852929,1780451444000,-282.068169,0.00020014,2]
[423852933,1780451444000,-151.0,0.00020014,2]
[423852924,1780451444000,-151.0,0.0002,2]
[423852932,1780451444000,-151.0,0.00020014,2]
[423852928,1780451444000,-282.068169,0.00020014,2]
[423852923,1780451444000,-151.0,0.0002,2]
[423852919,1780451444000,-151.0,0.0002,2]
[423852920,1780451444000,-151.0,0.0002,2]
[423852922,1780451444000,-151.0,0.0002,2]
[423852917,1780451444000,-151.0,0.0002,2]
[423852921,1780451444000,-151.0,0.0002,2]
[423852927,1780451444000,-762726.8986,0.00020013,2]
[423852915,1780451444000,-282.068169,0.0002,2]
[423852918,1780451444000,-151.0,0.0002,2]
[423853009,1780451445000,-235.150705,0.00021918,2]
[423853012,1780451445000,-235.150705,0.00021918,2]
[423853007,1780451445000,-235.150705,0.00021918,2]
[423853008,1780451445000,-235.150705,0.00021918,2]
[423853006,1780451445000,-235.150705,0.00021918,2]
[423853002,1780451445000,-235.150705,0.00021918,2]
[423852992,1780451445000,-151.0,0.00021918,2]
[423853001,1780451445000,-235.150705,0.00021918,2]
[423852994,1780451445000,-235.150705,0.00021918,2]
[423853003,1780451445000,-235.150705,0.00021918,2]
[423852995,1780451445000,-235.150705,0.00021918,2]
[423853014,1780451445000,-151.0,0.00021918,2]
[423853000,1780451445000,-235.150705,0.00021918,2]
[423853011,1780451445000,-235.150705,0.00021918,2]
[423853022,1780451445000,-151.0,0.00021918,2]
[423853017,1780451445000,-167.045598,0.00021918,2]
[423853010,1780451445000,-235.150705,0.00021918,2]
[423853019,1780451445000,-334.3768,0.00021918,2]
[423853016,1780451445000,-151.0,0.00021918,2]
[423853013,1780451445000,-235.15070271,0.00021918,2]
[423853018,1780451445000,-151.0,0.00021918,2]
[423853031,1780451445000,-151.0,0.00021918,2]
[423853021,1780451445000,-334.3768,0.00021918,2]
[423853032,1780451445000,-334.3768,0.00021918,2]
[423853033,1780451445000,-151.0,0.00021918,2]
[423853028,1780451445000,-151.0,0.00021918,2]
[423853026,1780451445000,-151.0,0.00021918,2]
[423853025,1780451445000,-334.3768,0.00021918,2]
[423852997,1780451445000,-235.150705,0.00021918,2]
[423853015,1780451445000,-165.018885,0.00021918,2]
[423853004,1780451445000,-235.150705,0.00021918,2]
[423852965,1780451445000,-531.0,0.00021,2]
[423852996,1780451445000,-235.150705,0.00021918,2]
[423853023,1780451445000,-334.3768,0.00021918,2]
[423852967,1780451445000,-151.02,0.000211,2]
[423852978,1780451445000,-151.41,0.000218,2]
[423852966,1780451445000,-172.8,0.00021096,2]
[423852968,1780451445000,-172.8,0.0002137,2]
[423852969,1780451445000,-533.141,0.00021392,2]
[423852970,1780451445000,-3631.0,0.00021392,2]
[423852971,1780451445000,-1051.76702819,0.000215,2]
[423852976,1780451445000,-1423.34036182,0.00021668,2]
[423852974,1780451445000,-151.06,0.000216,2]
[423852973,1780451445000,-300.0,0.0002151,2]
[423852972,1780451445000,-13014.0779109,0.000215,2]
[423852975,1780451445000,-172.8,0.00021644,2]
[423852979,1780451445000,-531.0,0.00021857,30]
[423852981,1780451445000,-206.07,0.00021914,2]
[423852980,1780451445000,-160.0,0.00021892,3]
[423852991,1780451445000,-151.0,0.00021918,2]
[423852989,1780451445000,-151.0,0.00021918,2]
[423852982,1780451445000,-500.0,0.00021917,2]
[423852984,1780451445000,-151.0,0.00021918,2]
[423852990,1780451445000,-151.0,0.00021918,2]
[423852983,1780451445000,-501.96651957,0.00021917,2]
[423852986,1780451445000,-151.0,0.00021918,2]
[423852987,1780451445000,-151.0,0.00021918,2]
[423852985,1780451445000,-151.0,0.00021918,2]
[423852988,1780451445000,-151.0,0.00021918,2]
[423852993,1780451445000,-289.596862,0.00021918,2]
[423852998,1780451445000,-235.150705,0.00021918,2]
[423853005,1780451445000,-235.150705,0.00021918,2]
[423852999,1780451445000,-235.150705,0.00021918,2]
[423853020,1780451445000,-151.0,0.00021918,2]
[423852977,1780451445000,-1000.0,0.00021683,5]
[423853027,1780451445000,-334.3768,0.00021918,2]
[423853081,1780451445000,-335.219679,0.00021918,2]
[423853072,1780451445000,-334.3768,0.00021918,2]
[423853076,1780451445000,-151.0,0.00021918,2]
[423853083,1780451445000,-151.0,0.00021918,2]
[423853086,1780451445000,-151.0,0.00021918,2]
[423853084,1780451445000,-335.219679,0.00021918,2]
[423853088,1780451445000,-335.219679,0.00021918,2]
[423853089,1780451445000,-151.0,0.00021918,2]
[423853091,1780451445000,-151.0,0.00021918,2]
[423853095,1780451445000,-151.0,0.00021918,2]
[423853090,1780451445000,-335.219679,0.00021918,2]
[423853096,1780451445000,-335.219679,0.00021918,2]
[423853094,1780451445000,-335.219679,0.00021918,2]
[423853097,1780451445000,-151.0,0.00021918,2]
[423853092,1780451445000,-335.219679,0.00021918,2]
[423853093,1780451445000,-151.0,0.00021918,2]
[423853099,1780451445000,-335.219679,0.00021918,2]
[423853108,1780451445000,-335.219679,0.00021918,2]
[423853107,1780451445000,-151.0,0.00021918,2]
[423853109,1780451445000,-335.219679,0.00021918,2]
[423853098,1780451445000,-335.219679,0.00021918,2]
[423853101,1780451445000,-335.219679,0.00021918,2]
[423853100,1780451445000,-168.332518,0.00021918,2]
[423853103,1780451445000,-335.219679,0.00021918,2]
[423853104,1780451445000,-335.219679,0.00021918,2]
[423853106,1780451445000,-335.219679,0.00021918,2]
[423853105,1780451445000,-151.0,0.00021918,2]
[423853102,1780451445000,-335.219679,0.00021918,2]
[423853024,1780451445000,-151.0,0.00021918,2]
[423853079,1780451445000,-151.0,0.00021918,2]
[423853073,1780451445000,-151.0,0.00021918,2]
[423853078,1780451445000,-335.219679,0.00021918,2]
[423853068,1780451445000,-334.3768,0.00021918,2]
[423853030,1780451445000,-151.0,0.00021918,2]
[423853029,1780451445000,-334.3768,0.00021918,2]
[423853034,1780451445000,-334.3768,0.00021918,2]
[423853036,1780451445000,-334.3768,0.00021918,2]
[423853037,1780451445000,-151.0,0.00021918,2]